fUSD/lending_fUSD_20240624
["ID","MTS","AMOUNT","RATE_DAILY","PERIOD"]
[330279926,1719225035431,-266.12819257,0.00019178,2]
[330279927,1719225035440,-500.0,0.00019178,2]
[330279928,1719225035450,-500.0,0.00019178,2]
[330279929,1719225035459,-501.80781179,0.00019178,2]
[330279930,1719225035469,-500.0,0.00019178,2]
[330279931,1719225035478,-527.33,0.00019178,2]
[330279932,1719225035488,-502.49008436,0.00019178,2]
[330279933,1719225035497,-500.0,0.00019178,2]
[330279934,1719225035507,-535.64937582,0.00019178,2]
[330279935,1719225035515,-500.0,0.00019178,2]
[330279936,1719225035525,-566.36,0.00019178,2]
[330279937,1719225035534,-500.0,0.00019178,2]
[330279938,1719225035544,-562.91,0.00019178,2]
[330279939,1719225035552,-500.0,0.00019178,2]
[330279940,1719225035562,-500.0,0.00019178,2]
[330279941,1719225035571,-500.0,0.00019178,2]
[330279942,1719225035580,-500.0,0.00019178,2]
[330279943,1719225035589,-601.09866882,0.00019178,2]
[330279944,1719225035598,-500.0,0.00019178,2]
[330279945,1719225035608,-606.04,0.00019178,2]
[330279946,1719225035617,-500.0,0.00019178,2]
[330279947,1719225035626,-500.0,0.00019178,2]
[330279948,1719225035635,-505.46,0.00019178,2]
[330279949,1719225035645,-500.0,0.00019178,2]
[330279950,1719225035654,-500.0,0.00019178,2]
[330279951,1719225035664,-616.96,0.00019178,2]
[330279952,1719225035673,-500.0,0.00019178,2]
[330279953,1719225035683,-500.0,0.00019178,2]
[330279954,1719225035696,-716.87,0.00019178,2]
[330279955,1719225035710,-500.0,0.00019178,2]
[330279956,1719225035719,-500.0,0.00019178,2]
[330279957,1719225035730,-500.0,0.00019178,2]
[330279958,1719225035739,-500.0,0.00019178,2]
[330279959,1719225035748,-607.7,0.00019178,2]
[330279960,1719225035758,-500.0,0.00019178,2]
[330279961,1719225035767,-500.0,0.00019178,2]
[330279962,1719225035777,-500.0,0.00019178,2]
[330279963,1719225035786,-604.49,0.00019178,2]
[330279964,1719225035796,-500.94210417,0.00019178,2]
[330279965,1719225035805,-500.0,0.00019178,2]
[330279966,1719225035814,-500.0,0.00019178,2]
[330279967,1719225035823,-532.5,0.00019178,2]
[330279968,1719225035832,-500.0,0.00019178,2]
[330279969,1719225035841,-500.0,0.00019178,2]
[330279970,1719225035851,-721.91,0.00019178,2]
[330279971,1719225035860,-540.49,0.00019178,2]
[330279972,1719225035869,-500.0,0.00019178,2]
[330279973,1719225035878,-537.82,0.00019178,2]
[330279974,1719225035887,-500.0,0.00019178,2]
[330279975,1719225035897,-636.69,0.00019178,2]
[330279976,1719225035906,-500.0,0.00019178,2]
[330279977,1719225035916,-500.0,0.00019178,2]
[330279978,1719225035925,-500.0,0.00019178,2]
[330279979,1719225035937,-2375.97,0.00019178,2]
[330279980,1719225035946,-500.0,0.00019178,2]
[330279981,1719225035955,-500.0,0.00019178,2]
[330279982,1719225035964,-627.11,0.00019178,2]
[330279983,1719225035972,-500.0,0.00019178,2]
[330279984,1719225035981,-500.0,0.00019178,2]
[330279985,1719225035990,-500.0,0.00019178,2]
[330279986,1719225035999,-592.98,0.00019178,2]
[330279987,1719225036008,-500.0,0.00019178,2]
[330279988,1719225036017,-539.3,0.00019178,2]
[330279989,1719225036027,-500.0,0.00019178,2]
[330279990,1719225036036,-500.0,0.00019178,2]
[330279991,1719225036045,-500.0,0.00019178,2]
[330279992,1719225036054,-548.48,0.00019178,2]
[330279993,1719225036063,-1429.21,0.00019178,2]
[330279994,1719225036073,-500.0,0.00019178,2]
[330279995,1719225036082,-500.0,0.00019178,2]
[330279996,1719225036091,-500.0,0.00019178,2]
[330279997,1719225036100,-708.12,0.00019178,2]
[330279998,1719225036109,-500.0,0.00019178,2]
[330279999,1719225036119,-500.0,0.00019178,2]
[330280000,1719225036128,-500.0,0.00019178,2]
[330280001,1719225036137,-550.47,0.00019178,2]
[330280002,1719225036146,-625.46759564,0.00019178,2]
[330280003,1719225036155,-797.8,0.00019178,2]
[330280004,1719225036165,-500.0,0.00019178,2]
[330280005,1719225036174,-500.0,0.00019178,2]
[330280006,1719225036186,-622.08,0.00019178,2]
[330280007,1719225036194,-500.0,0.00019178,2]
[330280008,1719225036203,-500.0,0.00019178,2]
[330280009,1719225036212,-500.0,0.00019178,2]
[330280010,1719225036221,-500.0,0.00019178,2]
[330280011,1719225036230,-500.0,0.00019178,2]
[330280012,1719225036239,-500.0,0.00019178,2]
[330280013,1719225036248,-500.0,0.00019178,2]
[330280014,1719225036258,-500.0,0.00019178,2]
[330280015,1719225036267,-500.0,0.00019178,2]
[330280016,1719225036281,-551.79,0.00019178,2]
[330280017,1719225036290,-500.0,0.00019178,2]
[330280018,1719225036300,-500.0,0.00019178,2]
[330280019,1719225036309,-500.0,0.00019178,2]
[330280020,1719225036319,-500.0,0.00019178,2]
[330280021,1719225036329,-500.0,0.00019178,2]
[330280022,1719225036338,-500.0,0.00019178,2]
[330280023,1719225036349,-679.41,0.00019178,2]
[330280024,1719225036358,-500.0,0.00019178,2]
[330280025,1719225036368,-500.0,0.00019178,2]
[330280026,1719225036377,-608.81,0.00019178,2]
[330280027,1719225036386,-500.0,0.00019178,2]
[330280028,1719225036395,-500.0,0.00019178,2]
[330280029,1719225036405,-696.94,0.00019178,2]
[330280030,1719225036414,-500.0,0.00019178,2]
[330280031,1719225036423,-512.21044575,0.00019178,2]
[330280032,1719225036434,-500.0,0.00019178,2]
[330280033,1719225036444,-500.0,0.00019178,2]
[330280034,1719225036453,-500.0,0.00019178,2]
[330280035,1719225036462,-506.59444333,0.00019178,2]
[330280036,1719225036471,-500.0,0.00019178,2]
[330280037,1719225036481,-744.06,0.00019178,2]
[330280038,1719225036490,-502.69064683,0.00019178,2]
[330280039,1719225036499,-500.0,0.00019178,2]
[330280040,1719225036508,-871.1,0.00019178,2]
[330280041,1719225036517,-500.0,0.00019178,2]
[330280042,1719225036526,-500.0,0.00019178,2]
[330280043,1719225036536,-511.31723237,0.00019178,2]
[330280044,1719225036545,-547.93,0.00019178,2]
[330280045,1719225036554,-500.0,0.00019178,2]
[330280046,1719225036563,-500.0,0.00019178,2]
[330280047,1719225036573,-500.0,0.00019178,2]
[330280048,1719225036582,-500.0,0.00019178,2]
[330280049,1719225036591,-517.9568191,0.00019178,2]
[330280050,1719225036601,-500.0,0.00019178,2]
[330280051,1719225036610,-560.50064522,0.00019178,2]
[330280052,1719225036619,-500.0,0.00019178,2]
[330280053,1719225036629,-831.68,0.00019178,2]
[330280054,1719225036637,-568.46176565,0.00019178,2]
[330280055,1719225036646,-506.66779853,0.00019178,2]
[330280056,1719225036655,-500.0,0.00019178,2]
[330280057,1719225036664,-500.0,0.00019178,2]
[330280058,1719225036673,-778.74,0.00019178,2]
[330280059,1719225036684,-500.0,0.00019178,2]
[330280060,1719225036693,-500.0,0.00019178,2]
[330280061,1719225036702,-500.0,0.00019178,2]
[330280062,1719225036711,-1218.21,0.00019178,2]
[330280063,1719225036720,-500.0,0.00019178,2]
[330280064,1719225036729,-506.6664039,0.00019178,2]
[330280065,1719225036739,-500.0,0.00019178,2]
[330280066,1719225036748,-500.0,0.00019178,2]
[330280067,1719225036758,-500.0,0.00019178,2]
[330280068,1719225036767,-500.0,0.00019178,2]
[330280069,1719225036777,-500.0,0.00019178,2]
[330280070,1719225036786,-504.92691775,0.00019178,2]
[330280071,1719225036795,-500.0,0.00019178,2]
[330280072,1719225036805,-500.0,0.00019178,2]
[330280073,1719225036814,-500.0,0.00019178,2]
[330280074,1719225036823,-500.0,0.00019178,2]
[330280075,1719225036833,-673.51,0.00019178,2]
[330280076,1719225036842,-500.0,0.00019178,2]
[330280077,1719225036851,-500.0,0.00019178,2]
[330280078,1719225036860,-500.0,0.00019178,2]
[330280079,1719225036870,-500.0,0.00019178,2]
[330280080,1719225036879,-499.6487,0.00019178,2]
[330280081,1719225036888,-505.17047218,0.00019178,2]
[330280082,1719225036897,-503.78447043,0.00019178,2]
[330280083,1719225036906,-500.0,0.00019178,2]
[330280084,1719225036916,-819.74,0.00019178,2]
[330280085,1719225036925,-794.32,0.00019178,2]
[330280086,1719225036937,-500.0,0.00019178,2]
[330280087,1719225036946,-509.01698795,0.00019178,2]
[330280088,1719225036955,-500.0,0.00019178,2]
[330280089,1719225036964,-500.0,0.00019178,2]
[330280090,1719225036973,-500.0,0.00019178,2]
[330280091,1719225036982,-500.0,0.00019178,2]
[330280092,1719225036992,-500.0,0.00019178,2]
[330280093,1719225037001,-614.9,0.00019178,2]
[330280094,1719225037010,-500.0,0.00019178,2]
[330280095,1719225037021,-269.1435403,0.00019178,2]
[330280096,1719225037031,-500.0,0.00019178,2]
[330280097,1719225037040,-500.0,0.00019178,2]
[330280098,1719225037049,-507.55289661,0.00019178,2]
[330280099,1719225037059,-500.0,0.00019178,2]
[330280100,1719225037068,-715.13,0.00019178,2]
[330280101,1719225037078,-508.52145523,0.00019178,2]
[330280102,1719225037087,-500.0,0.00019178,2]
[330280103,1719225037096,-500.0,0.00019178,2]
[330280104,1719225037106,-502.15351652,0.00019178,2]
[330280105,1719225037116,-500.0,0.00019178,2]
[330280106,1719225037125,-500.0,0.00019178,2]
[330280107,1719225037134,-506.58389302,0.00019178,2]
[330280108,1719225037144,-500.0,0.00019178,2]
[330280109,1719225037153,-500.0,0.00019178,2]
[330280110,1719225037162,-548.47,0.00019178,2]
[330280111,1719225037172,-500.0,0.00019178,2]
[330280112,1719225037181,-500.0,0.00019178,2]
[330280113,1719225037193,-500.0,0.00019178,2]
[330280114,1719225037203,-500.0,0.00019178,2]
[330280115,1719225037212,-500.0,0.00019178,2]
[330280116,1719225037221,-602.36,0.00019178,2]
[330280117,1719225037231,-748.46,0.00019178,2]
[330280118,1719225037240,-1222.62,0.00019178,2]
[330280119,1719225037249,-617.87,0.00019178,2]
[330280120,1719225037258,-500.0,0.00019178,2]
[330280121,1719225037269,-500.0,0.00019178,2]
[330280122,1719225037282,-569.83,0.00019178,2]
[330280123,1719225037292,-500.0,0.00019178,2]
[330280124,1719225037302,-519.78,0.00019178,2]
[330280125,1719225037311,-638.69,0.00019178,2]
[330280126,1719225037322,-500.0,0.00019178,2]
[330280127,1719225037332,-507.15417719,0.00019178,2]
[330280128,1719225037341,-1041.66,0.00019178,2]
[330280129,1719225037350,-788.05,0.00019178,2]
[330280130,1719225037361,-502.32325831,0.00019178,2]
[330280131,1719225037372,-500.0,0.00019178,2]
[330280132,1719225037382,-523.59899637,0.00019178,2]
[330280133,1719225037413,-176.50100363,0.00019178,2]
[330280134,1719225037423,-544.6,0.00019178,2]
[330280135,1719225037435,-500.0,0.00019178,2]
[330280136,1719225037444,-125.68609619,0.00019178,2]
[330280137,1719225037456,-374.31390381,0.00019178,2]
[330280138,1719225037465,-500.0,0.00019178,2]
[330280139,1719225037475,-500.0,0.00019178,2]
[330280140,1719225037484,-509.47532684,0.00019178,2]
[330280141,1719225037493,-51.44303244,0.00019178,2]
[330280142,1719225037505,-448.55696756,0.00019178,2]
[330280143,1719225037515,-449.39303244,0.00019178,2]
[330280144,1719225037526,-50.60696756,0.00019178,2]
[330280145,1719225037536,-620.67,0.00019178,2]
[330280146,1719225037545,-488.82612765,0.00019178,2]
[330280147,1719225037554,-779.27,0.00019178,2]
[330280148,1719225037564,-500.0,0.00019178,2]
[330280149,1719225037573,-1144.79,0.00019178,2]
[330280150,1719225037583,-500.0,0.00019178,2]
[330280151,1719225037592,-505.18785254,0.00019178,2]
[330280152,1719225037602,-500.0,0.00019178,2]
[330280153,1719225037611,-756.79,0.00019178,2]
[330280154,1719225037621,-500.0,0.00019178,2]
[330280155,1719225037630,-512.63151831,0.00019178,2]
[330280156,1719225037639,-500.0,0.00019178,2]
[330280157,1719225037649,-500.0,0.00019178,2]
[330280158,1719225037659,-500.0,0.00019178,2]
[330280159,1719225037668,-500.0,0.00019178,2]
[330280160,1719225037677,-500.0,0.00019178,2]
[330280161,1719225037688,-500.0,0.00019178,2]
[330280162,1719225037697,-500.0,0.00019178,2]
[330280163,1719225037707,-500.0,0.00019178,2]
[330280164,1719225037717,-500.0,0.00019178,2]
[330280165,1719225037726,-508.69347936,0.00019178,2]
[330280166,1719225037736,-532.73,0.00019178,2]
[330280167,1719225037746,-500.0,0.00019178,2]
[330280168,1719225037756,-500.0,0.00019178,2]
[330280169,1719225037766,-1143.66,0.00019178,2]
[330280170,1719225037776,-500.0,0.00019178,2]
[330280171,1719225037786,-528.02299629,0.00019178,2]
[330280172,1719225037796,-500.0,0.00019178,2]
[330280173,1719225037806,-754.4,0.00019178,2]
[330280174,1719225037816,-489.95662478,0.00019178,2]
[330280175,1719225037826,-500.0,0.00019178,2]
[330280176,1719225037836,-500.0,0.00019178,2]
[330280177,1719225037846,-526.00714588,0.00019178,2]
[330280178,1719225037855,-2366.12,0.00019178,2]
[330280179,1719225037865,-500.0,0.00019178,2]
[330280180,1719225037875,-500.0,0.00019178,2]
[330280181,1719225037884,-500.0,0.00019178,2]
[330280182,1719225037894,-880.16,0.00019178,2]
[330280183,1719225037903,-500.0,0.00019178,2]
[330280184,1719225037913,-1328.59,0.00019178,2]
[330280185,1719225037923,-500.0,0.00019178,2]
[330280186,1719225037934,-500.0,0.00019178,2]
[330280187,1719225037944,-500.0,0.00019178,2]
[330280188,1719225037953,-500.0,0.00019178,2]
[330280189,1719225037962,-544.69394042,0.00019178,2]
[330280190,1719225037972,-500.0,0.00019178,2]
[330280191,1719225037983,-519.00630927,0.00019178,2]
[330280192,1719225037992,-530.62574288,0.00019178,2]
[330280193,1719225038171,-856.56,0.00019178,2]
[330280194,1719225038208,-606.7,0.00019178,2]
[330280195,1719225038220,-500.0,0.00019178,2]
[330280196,1719225038230,-873.34,0.00019178,2]
[330280197,1719225038240,-503.95037328,0.00019178,2]
[330280198,1719225038249,-511.86602703,0.00019178,2]
[330280199,1719225038259,-500.0,0.00019178,2]
[330280200,1719225038269,-500.0,0.00019178,2]
[330280201,1719225038279,-500.0,0.00019178,2]
[330280202,1719225038293,-500.0,0.00019178,2]
[330280203,1719225038303,-500.0,0.00019178,2]
[330280204,1719225038313,-500.0,0.00019178,2]
[330280205,1719225038323,-639.58505142,0.00019178,2]
[330280206,1719225038333,-582.14,0.00019178,2]
[330280207,1719225038343,-509.88387729,0.00019178,2]
[330280208,1719225038354,-615.74,0.00019178,2]
[330280209,1719225038365,-507.32,0.00019178,2]
[330280210,1719225038375,-500.0,0.00019178,2]
[330280211,1719225038384,-509.73125822,0.00019178,2]
[330280212,1719225038394,-500.0,0.00019178,2]
[330280213,1719225038404,-500.0,0.00019178,2]
[330280214,1719225038413,-2107.55,0.00019178,2]
[330280215,1719225038423,-503.01779863,0.00019178,2]
[330280216,1719225038433,-479.32566488,0.00019178,2]
[330280217,1719225038444,-505.98205539,0.00019178,2]
[330280218,1719225038454,-952.64,0.00019178,2]
[330280219,1719225038464,-500.0,0.00019178,2]
[330280220,1719225038474,-500.0,0.00019178,2]
[330280221,1719225038484,-500.0,0.00019178,2]
[330280222,1719225038494,-508.70146515,0.00019178,2]
[330280223,1719225038504,-917.33,0.00019178,2]
[330280225,1719225038514,-504.41689081,0.00019178,2]
[330280226,1719225038523,-506.84791913,0.00019178,2]
[330280227,1719225038533,-507.39360696,0.00019178,2]
[330280228,1719225038542,-500.0,0.00019178,2]
[330280229,1719225038552,-500.0,0.00019178,2]
[330280230,1719225038562,-500.0,0.00019178,2]
[330280231,1719225038571,-500.0,0.00019178,2]
[330280232,1719225038581,-500.0,0.00019178,2]
[330280233,1719225038591,-500.0,0.00019178,2]
[330280234,1719225038601,-500.0,0.00019178,2]
[330280235,1719225038610,-661.89,0.00019178,2]
[330280236,1719225038620,-786.41,0.00019178,2]
[330280237,1719225038629,-500.0,0.00019178,2]
[330280238,1719225038639,-500.0,0.00019178,2]
[330280239,1719225038648,-500.0,0.00019178,2]
[330280240,1719225038658,-500.0,0.00019178,2]
[330280241,1719225038667,-602.47,0.00019178,2]
[330280242,1719225038677,-500.0,0.00019178,2]
[330280243,1719225038689,-770.56,0.00019178,2]
[330280244,1719225038699,-746.9,0.00019178,2]
[330280245,1719225038708,-620.95,0.00019178,2]
[330280246,1719225038717,-377.69826379,0.00019178,2]
[330280247,1719225038733,-122.30173621,0.00019178,2]
[330280248,1719225038742,-1030.50915375,0.00019178,2]
[330280249,1719225038754,-446.74278098,0.00019178,2]
[330280250,1719225038765,-3659.30806527,0.00019178,2]
[330280251,1719225038775,-524.53453998,0.00019178,2]
[330280252,1719225038784,-500.0,0.00019178,2]
[330280253,1719225038795,-500.0,0.00019178,2]
[330280254,1719225038805,-500.0,0.00019178,2]
[330280255,1719225038814,-500.0,0.00019178,2]
[330280256,1719225038824,-500.0,0.00019178,2]
[330280257,1719225038834,-500.0,0.00019178,2]
[330280258,1719225038843,-544.15,0.00019178,2]
[330280259,1719225038852,-1081.58,0.00019178,2]
[330280260,1719225038862,-506.3148286,0.00019178,2]
[330280261,1719225038872,-500.0,0.00019178,2]
[330280262,1719225038881,-512.39515608,0.00019178,2]
[330280263,1719225038891,-513.86254644,0.00019178,2]
[330280264,1719225038900,-605.32,0.00019178,2]
[330280265,1719225038910,-544.49598155,0.00019178,2]
[330280266,1719225038920,-500.0,0.00019178,2]
[330280267,1719225038930,-508.97081114,0.00019178,2]
[330280268,1719225038942,-2386.57,0.00019178,2]
[330280269,1719225038952,-511.58020077,0.00019178,2]
[330280270,1719225038962,-500.0,0.00019178,2]
[330280271,1719225038972,-500.0,0.00019178,2]
[330280272,1719225038982,-500.0,0.00019178,2]
[330280273,1719225038991,-506.93686229,0.00019178,2]
[330280274,1719225039001,-500.0,0.00019178,2]
[330280275,1719225039011,-500.0,0.00019178,2]
[330280276,1719225039022,-503.57262855,0.00019178,2]
[330280277,1719225039032,-500.0,0.00019178,2]
[330280278,1719225039043,-509.04795218,0.00019178,2]
[330280279,1719225039053,-552.96,0.00019178,2]
[330280280,1719225039064,-500.0,0.00019178,2]
[330280281,1719225039074,-1752.0,0.00019178,2]
[330280282,1719225039085,-500.0,0.00019178,2]
[330280283,1719225039096,-500.0,0.00019178,2]
[330280284,1719225039106,-500.0,0.00019178,2]
[330280285,1719225039116,-569.94,0.00019178,2]
[330280286,1719225039127,-553.99,0.00019178,2]
[330280287,1719225039138,-909.86,0.00019178,2]
[330280288,1719225039149,-677.49,0.00019178,2]
[330280289,1719225039158,-500.0,0.00019178,2]
[330280290,1719225039169,-500.0,0.00019178,2]
[330280291,1719225039179,-1507.05,0.00019178,2]
[330280292,1719225039191,-500.0,0.00019178,2]
[330280293,1719225039202,-500.0,0.00019178,2]
[330280294,1719225039212,-500.0,0.00019178,2]
[330280295,1719225039222,-500.8,0.00019178,2]
[330280296,1719225039233,-777.08,0.00019178,2]
[330280297,1719225039243,-500.0,0.00019178,2]
[330280298,1719225039254,-515.16588316,0.00019178,2]
[330280299,1719225039264,-1452.1371959,0.00019178,2]
[330280300,1719225039284,-311.7528041,0.00019178,2]
[330280301,1719225039294,-316.04646589,0.00019178,2]
[330280302,1719225039304,-811.61,0.00019178,2]
[330280303,1719225039316,-920.86,0.00019178,2]
[330280304,1719225039326,-500.0,0.00019178,2]
[330280305,1719225039337,-500.0,0.00019178,2]
[330280306,1719225039350,-1498.91,0.00019178,2]
[330280307,1719225039360,-500.0,0.00019178,2]
[330280308,1719225039370,-500.0,0.00019178,2]
[330280309,1719225039381,-1032.16,0.00019178,2]
[330280310,1719225039391,-1163.75,0.00019178,2]
[330280311,1719225039402,-500.0,0.00019178,2]
[330280312,1719225039412,-500.0,0.00019178,2]
[330280313,1719225039422,-795.51,0.00019178,2]
[330280314,1719225039432,-500.0,0.00019178,2]
[330280315,1719225039444,-507.62140651,0.00019178,2]
[330280316,1719225039454,-500.0,0.00019178,2]
[330280317,1719225039465,-581.46857748,0.00019178,2]
[330280318,1719225039478,-500.0,0.00019178,2]
[330280319,1719225039488,-500.0,0.00019178,2]
[330280320,1719225039499,-500.0,0.00019178,2]
[330280321,1719225039510,-505.37884802,0.00019178,2]
[330280322,1719225039521,-500.0,0.00019178,2]
[330280323,1719225039532,-913.86,0.00019178,2]
[330280324,1719225039542,-500.0,0.00019178,2]
[330280325,1719225039552,-500.0,0.00019178,2]
[330280326,1719225039563,-500.0,0.00019178,2]
[330280327,1719225039574,-1324.87,0.00019178,2]
[330280328,1719225039584,-500.0,0.00019178,2]
[330280329,1719225039594,-500.0,0.00019178,2]
[330280330,1719225039605,-1970.44,0.00019178,2]
[330280331,1719225039615,-500.0,0.00019178,2]
[330280332,1719225039625,-500.0,0.00019178,2]
[330280333,1719225039635,-545.52,0.00019178,2]
[330280334,1719225039645,-1629.63,0.00019178,2]
[330280335,1719225039656,-500.0,0.00019178,2]
[330280336,1719225039666,-500.0,0.00019178,2]
[330280337,1719225039676,-500.0,0.00019178,2]
[330280338,1719225039688,-500.0,0.00019178,2]
[330280339,1719225039697,-577.4,0.00019178,2]
[330280340,1719225039708,-511.05074213,0.00019178,2]
[330280341,1719225039719,-500.0,0.00019178,2]
[330280342,1719225039730,-500.0,0.00019178,2]
[330280343,1719225039740,-500.0,0.00019178,2]
[330280344,1719225039749,-954.31,0.00019178,2]
[330280345,1719225039759,-2420.65,0.00019178,2]
[330280346,1719225039769,-500.0,0.00019178,2]
[330280347,1719225039779,-639.44,0.00019178,2]
[330280348,1719225039789,-500.0,0.00019178,2]
[330280349,1719225039800,-500.0,0.00019178,2]
[330280350,1719225039810,-500.0,0.00019178,2]
[330280351,1719225039821,-500.0,0.00019178,2]
[330280352,1719225039831,-734.82,0.00019178,2]
[330280353,1719225039842,-500.0,0.00019178,2]
[330280354,1719225039852,-500.0,0.00019178,2]
[330280355,1719225039863,-510.18412191,0.00019178,2]
[330280356,1719225039874,-556.74,0.00019178,2]
[330280357,1719225039884,-500.0,0.00019178,2]
[330280358,1719225039895,-500.0,0.00019178,2]
[330280359,1719225039905,-1001.82,0.00019178,2]
[330280360,1719225039915,-500.0,0.00019178,2]
[330280361,1719225039925,-500.0,0.00019178,2]
[330280362,1719225039935,-653.97,0.00019178,2]
[330280363,1719225039945,-948.43,0.00019178,2]
[330280364,1719225039955,-1437.16,0.00019178,2]
[330280365,1719225039966,-500.0,0.00019178,2]
[330280366,1719225039976,-500.0,0.00019178,2]
[330280367,1719225039987,-535.53271981,0.00019178,2]
[330280368,1719225039998,-511.43530125,0.00019178,2]
[330280369,1719225040009,-1305.57,0.00019178,2]
[330280370,1719225040019,-845.83,0.00019178,2]
[330280371,1719225040030,-512.72706333,0.00019178,2]
[330280372,1719225040041,-500.0,0.00019178,2]
[330280373,1719225040052,-575.63,0.00019178,2]
[330280374,1719225040063,-603.62,0.00019178,2]
[330280375,1719225040074,-500.0,0.00019178,2]
[330280376,1719225040085,-517.06,0.00019178,2]
[330280377,1719225040095,-1614.45,0.00019178,2]
[330280378,1719225040106,-500.0,0.00019178,2]
[330280379,1719225040117,-500.0,0.00019178,2]
[330280380,1719225040128,-691.81,0.00019178,2]
[330280381,1719225040139,-1184.4,0.00019178,2]
[330280382,1719225040150,-912.48,0.00019178,2]
[330280385,1719225040160,-500.0,0.00019178,2]
[330280387,1719225040171,-500.0,0.00019178,2]
[330280389,1719225040181,-500.0,0.00019178,2]
[330280392,1719225040194,-388.23145716,0.00019178,2]
[330280393,1719225040205,-2500.0,0.00019178,3]
[330280396,1719225040216,-500.0,0.00019178,2]
[330280398,1719225040227,-500.0,0.00019178,2]
[330280399,1719225040239,-738.34,0.00019178,2]
[330280401,1719225040250,-500.0,0.00019178,2]
[330280403,1719225040261,-1260.58,0.00019178,2]
[330280404,1719225040276,-748.07,0.00019178,2]
[330280405,1719225040287,-700.12,0.00019178,2]
[330280406,1719225040297,-500.0,0.00019178,2]
[330280407,1719225040308,-858.72,0.00019178,2]
[330280408,1719225040319,-2090.29,0.00019178,2]
[330280409,1719225040330,-500.0,0.00019178,2]
[330280410,1719225040341,-500.0,0.00019178,2]
[330280411,1719225040351,-500.0,0.00019178,2]
[330280412,1719225040364,-571.44,0.00019178,2]
[330280413,1719225040374,-133.14241547,0.00019178,2]
[330280414,1719225040390,-720.0,0.00019178,2]
[330280415,1719225040403,-12.76758453,0.00019178,2]
[330280416,1719225040414,-500.0,0.00019178,2]
[330280417,1719225040424,-768.89,0.00019178,2]
[330280418,1719225040436,-783.1,0.00019178,2]
[330280419,1719225040446,-731.31,0.00019178,2]
[330280420,1719225040457,-833.20938045,0.00019178,2]
[330280421,1719225040469,-397.08384421,0.00019178,2]
[330280422,1719225040482,-1039.06677534,0.00019178,2]
[330280423,1719225040493,-539.49079281,0.00019178,2]
[330280430,1719225041648,-325.1447914,0.00018878,2]
[330280431,1719225041658,-1154.56116758,0.00018944,2]
[330280432,1719225041666,-1801.53673236,0.00018974,2]
[330280433,1719225041732,-617.0,0.00018974,2]
[330280434,1719225041741,-409.9160125,0.00018974,2]
[330280435,1719225041747,-1250.0,0.00019138,2]
[330280436,1719225041756,-217.87188322,0.00019172,2]
[330280437,1719225041764,-998.08920719,0.00019178,2]
[330280438,1719225041771,-500.0,0.00019178,2]
[330280439,1719225041778,-500.0,0.00019178,2]
[330280440,1719225041786,-1238.67,0.00019178,2]
[330280441,1719225041794,-686.15032218,0.00019178,2]
[330280442,1719225041803,-176.38967782,0.00019178,2]
[330280443,1719225041811,-113.53747631,0.00019178,2]